[Event "FRA-ch Youth U14W 2019"]
[Site "Hyeres"]
[Date "2019.04.14"]
[Round "1.1"]
[White "Sumarriva Paulin, Laura"]
[Black "Nabet, Hasnaa"]
[Result "1-0"]
[ECO "D13"]
[WhiteElo "1922"]
[BlackElo "1254"]
[Annotator "NA"]
[PlyCount "65"]
[EventDate "2019.04.14"]
[EventType "swiss"]
[EventCountry "FRA"]
[SourceTitle "playchess.com"]
[Source "ChessBase"]
[SourceQuality "1"]
[TimeControl "5400+30"]

1. d4 {[%emt 0:00:00]} d5 {[%emt 0:00:00]} 2. c4 {[%emt 0:00:00]} c6 {[%emt 0:00:00]} 3. cxd5 {[%emt 0:00:00]} cxd5 {[%emt 0:00:00]} 4. Bf4 {[%emt 0:00:01]} Nf6 {[%emt 0:00:49]} 5. Nc3 {[%emt 0:00:51]} Nc6 {[%emt 0:00:35]} 6. e3 {[%emt 0:00:25]} a6 {[%emt 0:00:21]} 7. Bd3 {[%emt 0:00:42]} e6 {[%emt 0:00:36]} 8. Rc1 {[%emt 0:00:23]} Be7 {[%emt 0:03:15]} 9. Nf3 {[%emt 0:02:01]} Bd7 {[%emt 0:01:55]} 10. O-O {[%emt 0:01:21]} O-O {[%emt 0:00:22]} 11. a3 {[%emt 0:06:15]} Nh5 {[%emt 0:02:28]} 12. Be5 {[%emt 0:02:32]} f6 {[%emt 0:00:23]} 13. Bg3 {[%emt 0:00:56]} Nxg3 {[%emt 0:02:21]} 14. hxg3 {[%emt 0:00:09]} f5 {[%emt 0:01:36]} 15. Na4 {[%emt 0:05:12]} Rf6 {[%emt 0:04:33]} 16. Nc5 {[%emt 0:03:59]} Rb8 {[%emt 0:03:32]} 17. b4 {[%emt 0:08:00]} Rh6 {[%emt 0:07:49]} 18. Qe2 {[%emt 0:10:42]} Qe8 {[%emt 0:08:00]} 19. b5 {[%emt 0:10:57]} axb5 {[%emt 0:00:43]} 20. Bxb5 {[%emt 0:00:37]} b6 {[%emt 0:06:06]} 21. Nxd7 {[%emt 0:02:16]} Qxd7 {[%emt 0:01:34]} 22. Bxc6 {[%emt 0:06:47]} Qa7 {[%emt 0:01:37]} 23. a4 {[%emt 0:00:54]} Bd6 {[%emt 0:03:00]} 24. Ne5 {[%emt 0:07:30]} Bxe5 {[%emt 0:14:16]} 25. dxe5 {[%emt 0:00:09]} Qe7 {[%emt 0:02:51]} 26. Rc2 {[%emt 0:07:27]} Qg5 {[%emt 0:02:11]} 27. Bd7 {[%emt 0:05:06]} Qg6 {[%emt 0:05:54]} 28. Rfc1 {[%emt 0:01:53]} Kf7 {[%emt 0:07:54]} 29. Rc7 {[%emt 0:01:32]} Rd8 {[%emt 0:03:39]} 30. Bxe6+ {[%emt 0:03:01]} Kf8 {[%emt 0:00:56]} 31. Rf7+ {[%emt 0:01:34]} Ke8 {[%emt 0:00:59]} 32. Qb5+ {[%emt 0:00:11]} Rd7 {[%emt 0:00:12]} 33. Qxd7# {[%emt 0:00:04]} 1-0

[Event "FRA-ch Youth U14W 2019"]
[Site "Hyeres"]
[Date "2019.04.14"]
[Round "1.2"]
[White "Le Boulicaut, Annaelle"]
[Black "Nguyen, Thao Nhi"]
[Result "0-1"]
[ECO "B02"]
[WhiteElo "1253"]
[BlackElo "1803"]
[Annotator "NA"]
[PlyCount "136"]
[EventDate "2019.04.14"]
[EventType "swiss"]
[EventCountry "FRA"]
[SourceTitle "playchess.com"]
[Source "ChessBase"]
[SourceQuality "1"]
[TimeControl "5400+30"]

1. e4 {[%emt 0:00:00]} Nf6 {[%emt 0:00:00]} 2. Nc3 {[%emt 0:00:00]} d5 {[%emt 0:00:00]} 3. exd5 {[%emt 0:00:11]} Nxd5 {[%emt 0:00:00]} 4. Nf3 {[%emt 0:00:58]} Bg4 {[%emt 0:00:45]} 5. Bc4 {[%emt 0:01:18]} e6 {[%emt 0:01:02]} 6. d4 {[%emt 0:02:02]} Be7 {[%emt 0:02:51]} 7. Bxd5 {[%emt 0:03:02]} exd5 {[%emt 0:00:51]} 8. O-O {[%emt 0:01:01]} O-O {[%emt 0:01:00]} 9. Bf4 {[%emt 0:02:41]} c6 {[%emt 0:08:34]} 10. Qd3 {[%emt 0:05:20]} Nd7 {[%emt 0:03:19]} 11. Rfe1 {[%emt 0:05:27]} Re8 {[%emt 0:07:29]} 12. h3 {[%emt 0:05:32]} Bxf3 {[%emt 0:08:28]} 13. Qxf3 {[%emt 0:00:27]} Qb6 {[%emt 0:03:42]} 14. Rad1 {[%emt 0:04:38]} Bf6 {[%emt 0:06:20]} 15. Rxe8+ {[%emt 0:04:36]} Rxe8 {[%emt 0:00:08]} 16. Na4 {[%emt 0:02:51]} Qb4 {[%emt 0:07:28]} 17. Nc3 {[%emt 0:03:41]} Bxd4 {[%emt 0:06:15]} 18. a3 {[%emt 0:06:42]} Qc4 {[%emt 0:01:02]} 19. Qg4 {[%emt 0:02:55]} Nf6 {[%emt 0:01:30]} 20. Qg3 {[%emt 0:01:43]} Nh5 {[%emt 0:01:15]} 21. Qf3 {[%emt 0:01:32]} Bxc3 {[%emt 0:04:38]} 22. Qxh5 {[%emt 0:02:29]} Bxb2 {[%emt 0:00:31]} 23. Qf3 {[%emt 0:03:37]} Qxc2 {[%emt 0:01:25]} 24. Rd2 {[%emt 0:03:15]} Qb1+ {[%emt 0:00:58]} 25. Rd1 {[%emt 0:03:08]} Qe4 {[%emt 0:02:41]} 26. Qg3 {[%emt 0:02:51]} Bf6 {[%emt 0:03:57]} 27. Be3 {[%emt 0:04:38]} d4 {[%emt 0:00:42]} 28. Bg5 {[%emt 0:02:01]} Be5 {[%emt 0:01:32]} 29. Qb3 {[%emt 0:02:05]} Bd6 {[%emt 0:02:17]} 30. Rf1 {[%emt 0:02:26]} Qe5 {[%emt 0:00:22]} 31. f4 {[%emt 0:00:44]} Qe3+ {[%emt 0:00:24]} 32. Qxe3 {[%emt 0:00:13]} dxe3 {[%emt 0:00:20]} 33. Re1 {[%emt 0:01:39]} e2 {[%emt 0:00:54]} 34. Kf2 {[%emt 0:00:40]} Bc5+ {[%emt 0:00:42]} 35. Kf3 {[%emt 0:01:20]} Re3+ {[%emt 0:01:03]} 36. Kf2 {[%emt 0:01:36]} f6 {[%emt 0:01:29]} 37. Bh4 {[%emt 0:00:16]} Rxh3+ {[%emt 0:00:15]} 38. Kxe2 {[%emt 0:00:32]} Rxh4 {[%emt 0:00:07]} 39. Kf3 {[%emt 0:00:57]} Kf7 {[%emt 0:00:41]} 40. a4 {[%emt 0:01:07]} Rh5 {[%emt 0:00:21]} 41. Rd1 {[%emt 0:00:55]} Rd5 {[%emt 0:00:07]} 42. Rb1 {[%emt 0:00:33]} Bb6 {[%emt 0:00:16]} 43. g3 {[%emt 0:00:42]} Rd3+ {[%emt 0:00:17]} 44. Kg4 {[%emt 0:00:13]} Ra3 {[%emt 0:00:29]} 45. Rb4 {[%emt 0:00:22]} a5 {[%emt 0:00:51]} 46. Rxb6 {[%emt 0:00:07]} Rxa4 {[%emt 0:00:32]} 47. Rxb7+ {[%emt 0:00:22]} Kg6 {[%emt 0:00:09]} 48. Rc7 {[%emt 0:00:42]} Rc4 {[%emt 0:00:08]} 49. Rd7 {[%emt 0:01:07]} a4 {[%emt 0:01:16]} 50. Rd3 {[%emt 0:00:13]} c5 {[%emt 0:00:18]} 51. Ra3 {[%emt 0:00:35]} h5+ {[%emt 0:01:06]} 52. Kh4 {[%emt 0:00:22]} Kh6 {[%emt 0:00:17]} 53. Rd3 {[%emt 0:00:43]} g5+ {[%emt 0:00:57]} 54. Kh3 {[%emt 0:00:19]} Rd4 {[%emt 0:01:29]} 55. Rc3 {[%emt 0:00:24]} gxf4 {[%emt 0:01:50]} 56. gxf4 {[%emt 0:00:20]} c4 {[%emt 0:00:20]} 57. Kg3 {[%emt 0:00:50]} Rd3+ {[%emt 0:00:08]} 58. Rxd3 {[%emt 0:00:24]} cxd3 {[%emt 0:00:06]} 59. Kf3 {[%emt 0:00:12]} a3 {[%emt 0:00:04]} 60. Ke3 {[%emt 0:00:14]} a2 {[%emt 0:00:05]} 61. Kxd3 {[%emt 0:00:06]} a1=Q {[%emt 0:00:12]} 62. Ke4 {[%emt 0:00:15]} Qa5 {[%emt 0:00:11]} 63. Kf3 {[%emt 0:00:10]} h4 {[%emt 0:00:19]} 64. Kg4 {[%emt 0:00:18]} Kg6 {[%emt 0:03:33]} 65. Kxh4 {[%emt 0:00:08]} Qc3 {[%emt 0:00:33]} 66. Kg4 {[%emt 0:00:15]} f5+ {[%emt 0:00:37]} 67. Kh4 {[%emt 0:00:12]} Kf6 {[%emt 0:00:16]} 68. Kh5 {[%emt 0:00:12]} Qh3# {[%emt 0:20:16]} 0-1

[Event "FRA-ch Youth U14W 2019"]
[Site "Hyeres"]
[Date "2019.04.14"]
[Round "1.3"]
[White "Cornileau, Juliette"]
[Black "Degree, Ombeline"]
[Result "1-0"]
[ECO "C47"]
[WhiteElo "1705"]
[BlackElo "1251"]
[Annotator "NA"]
[PlyCount "183"]
[EventDate "2019.04.14"]
[EventType "swiss"]
[EventCountry "FRA"]
[SourceTitle "playchess.com"]
[Source "ChessBase"]
[SourceQuality "1"]
[TimeControl "5400+30"]

1. e4 {[%emt 0:00:00]} e5 {[%emt 0:00:00]} 2. Nf3 {[%emt 0:00:00]} Nc6 {[%emt 0:00:00]} 3. Nc3 {[%emt 0:00:17]} Nf6 {[%emt 0:00:33]} 4. d4 {[%emt 0:00:08]} exd4 {[%emt 0:01:17]} 5. Nxd4 {[%emt 0:00:07]} Bb4 {[%emt 0:03:34]} 6. Nxc6 {[%emt 0:00:44]} bxc6 {[%emt 0:00:13]} 7. Bd3 {[%emt 0:00:08]} d6 {[%emt 0:01:03]} 8. Bg5 {[%emt 0:02:39]} Be6 {[%emt 0:03:42]} 9. O-O {[%emt 0:01:20]} h6 {[%emt 0:11:02]} 10. Bh4 {[%emt 0:01:52]} g5 {[%emt 0:04:06]} 11. Bg3 {[%emt 0:00:05]} h5 {[%emt 0:02:00]} 12. f4 {[%emt 0:10:16]} h4 {[%emt 0:08:26]} 13. Be1 {[%emt 0:07:01]} g4 {[%emt 0:07:14]} 14. Qe2 {[%emt 0:27:36]} g3 {[%emt 0:07:43]} 15. h3 {[%emt 0:04:17]} Bc5+ {[%emt 0:03:17]} 16. Kh1 {[%emt 0:02:33]} Rg8 {[%emt 0:04:24]} 17. f5 {[%emt 0:00:56]} Bd7 {[%emt 0:01:14]} 18. Bd2 {[%emt 0:14:09]} Qe7 {[%emt 0:03:00]} 19. Qf3 {[%emt 0:03:12]} Rb8 {[%emt 0:05:18]} 20. b3 {[%emt 0:01:11]} Bd4 {[%emt 0:00:31]} 21. Rae1 {[%emt 0:01:13]} Be5 {[%emt 0:01:15]} 22. Qe3 {[%emt 0:01:37]} c5 {[%emt 0:05:41]} 23. Qh6 {[%emt 0:01:24]} Kd8 {[%emt 0:02:27]} 24. Ne2 {[%emt 0:05:34]} Ne8 {[%emt 0:01:29]} 25. Bc3 {[%emt 0:14:11]} Bxc3 {[%emt 0:02:50]} 26. Nxc3 {[%emt 0:00:00]} Qf6 {[%emt 0:00:50]} 27. Qd2 {[%emt 0:00:00]} c6 {[%emt 0:01:09]} 28. Bc4 {[%emt 0:00:00]} Nc7 {[%emt 0:01:23]} 29. Rd1 {[%emt 0:00:00]} Ke7 {[%emt 0:00:59]} 30. Rfe1 {[%emt 0:00:00]} Qe5 {[%emt 0:00:45]} 31. Qh6 {[%emt 0:00:16]} Rh8 {[%emt 0:00:31]} 32. Qg5+ {[%emt 0:00:56]} Kf8 {[%emt 0:00:54]} 33. Nb1 {[%emt 0:01:22]} Ne6 {[%emt 0:02:45]} 34. Qd2 {[%emt 0:00:37]} Nd4 {[%emt 0:00:27]} 35. c3 {[%emt 0:00:41]} Nb5 {[%emt 0:00:41]} 36. a4 {[%emt 0:00:19]} Nc7 {[%emt 0:00:26]} 37. Qxd6+ {[%emt 0:00:12]} Qxd6 {[%emt 0:00:02]} 38. Rxd6 {[%emt 0:00:01]} Ke7 {[%emt 0:00:17]} 39. Red1 {[%emt 0:00:41]} Rbd8 {[%emt 0:00:22]} 40. f6+ {[%emt 0:00:43]} Ke8 {[%emt 0:00:22]} 41. Bxf7+ {[%emt 0:01:28]} Kxf7 {[%emt 0:00:14]} 42. Rxd7+ {[%emt 0:00:08]} Rxd7 {[%emt 0:00:12]} 43. Rxd7+ {[%emt 0:00:09]} Kxf6 {[%emt 0:00:08]} 44. Nd2 {[%emt 0:01:19]} Ne6 {[%emt 0:00:26]} 45. Nf3 {[%emt 0:00:33]} a5 {[%emt 0:00:42]} 46. Kg1 {[%emt 0:00:32]} Nf4 {[%emt 0:01:08]} 47. e5+ {[%emt 0:00:22]} Ke6 {[%emt 0:00:19]} 48. Rd6+ {[%emt 0:00:14]} Ke7 {[%emt 0:00:02]} 49. Kf1 {[%emt 0:00:44]} Rb8 {[%emt 0:00:33]} 50. Nd2 {[%emt 0:00:38]} Rf8 {[%emt 0:00:28]} 51. Rf6 {[%emt 0:00:33]} Rxf6 {[%emt 0:00:09]} 52. exf6+ {[%emt 0:00:02]} Kxf6 {[%emt 0:00:21]} 53. Ne4+ {[%emt 0:00:29]} Ke5 {[%emt 0:00:17]} 54. Nxc5 {[%emt 0:00:06]} Nd5 {[%emt 0:01:08]} 55. c4 {[%emt 0:01:20]} Ne3+ {[%emt 0:00:27]} 56. Kg1 {[%emt 0:00:28]} Kd4 {[%emt 0:01:05]} 57. Nb7 {[%emt 0:00:18]} Kc3 {[%emt 0:00:16]} 58. Nxa5 {[%emt 0:00:37]} Kb4 {[%emt 0:00:13]} 59. Nxc6+ {[%emt 0:00:15]} Kxb3 {[%emt 0:00:11]} 60. a5 {[%emt 0:00:46]} Nxc4 {[%emt 0:00:25]} 61. a6 {[%emt 0:00:35]} Nb6 {[%emt 0:00:09]} 62. a7 {[%emt 0:00:32]} Na8 {[%emt 0:00:45]} 63. Kf1 {[%emt 0:00:12]} Kc4 {[%emt 0:00:02]} 64. Ne5+ {[%emt 0:00:39]} Kb5 {[%emt 0:00:10]} 65. Ng6 {[%emt 0:00:22]} Ka6 {[%emt 0:00:13]} 66. Nxh4 {[%emt 0:00:03]} Kxa7 {[%emt 0:00:05]} 67. Nf5 {[%emt 0:00:08]} Kb7 {[%emt 0:00:15]} 68. Nxg3 {[%emt 0:00:23]} Kc7 {[%emt 0:00:08]} 69. Nf5 {[%emt 0:00:44]} Kd7 {[%emt 0:00:13]} 70. h4 {[%emt 0:00:51]} Ke6 {[%emt 0:00:23]} 71. g4 {[%emt 0:00:21]} Kf6 {[%emt 0:00:26]} 72. Kg2 {[%emt 0:00:49]} Nc7 {[%emt 0:00:15]} 73. Kf3 {[%emt 0:00:34]} Ne6 {[%emt 0:00:23]} 74. Ne3 {[%emt 0:00:43]} Ng7 {[%emt 0:01:41]} 75. Ke4 {[%emt 0:00:26]} Kg6 {[%emt 0:01:49]} 76. Ke5 {[%emt 0:00:46]} Ne8 {[%emt 0:00:39]} 77. Nd5 {[%emt 0:00:29]} Ng7 {[%emt 0:01:37]} 78. Ne7+ {[%emt 0:00:12]} Kh7 {[%emt 0:00:30]} 79. g5 {[%emt 0:00:51]} Nh5 {[%emt 0:00:44]} 80. Nf5 {[%emt 0:00:21]} Kg6 {[%emt 0:00:48]} 81. Ne7+ {[%emt 0:00:31]} Kg7 {[%emt 0:00:16]} 82. Nd5 {[%emt 0:00:36]} Kf7 {[%emt 0:01:27]} 83. Nf4 {[%emt 0:00:21]} Ng7 {[%emt 0:03:15]} 84. h5 {[%emt 0:00:39]} Ne8 {[%emt 0:01:08]} 85. h6 {[%emt 0:00:31]} Kg8 {[%emt 0:00:26]} 86. Nh5 {[%emt 0:00:25]} Kh8 {[%emt 0:01:09]} 87. Nf6 {[%emt 0:00:28]} Nc7 {[%emt 0:00:45]} 88. g6 {[%emt 0:00:38]} Ne6 {[%emt 0:00:26]} 89. Ne8 {[%emt 0:00:29]} Ng5 {[%emt 0:00:46]} 90. g7+ {[%emt 0:00:14]} Kh7 {[%emt 0:01:03]} 91. Nf6+ {[%emt 0:00:07]} Kxh6 {[%emt 0:00:14]} 92. g8=Q {[%emt 0:00:11]} 1-0

[Event "FRA-ch Youth U14W 2019"]
[Site "Hyeres"]
[Date "2019.04.14"]
[Round "1.4"]
[White "Ateba, Melissandre"]
[Black "Bellahcene, Sofia"]
[Result "0-1"]
[ECO "B22"]
[WhiteElo "1231"]
[BlackElo "1673"]
[Annotator "NA"]
[PlyCount "106"]
[EventDate "2019.04.14"]
[EventType "swiss"]
[EventCountry "FRA"]
[SourceTitle "playchess.com"]
[Source "ChessBase"]
[SourceQuality "1"]
[TimeControl "5400+30"]

1. e4 {[%emt 0:00:00]} c5 {[%emt 0:00:08]} 2. c3 {[%emt 0:00:00]} d5 {[%emt 0:00:19]} 3. exd5 {[%emt 0:00:09]} Qxd5 {[%emt 0:00:23]} 4. d4 {[%emt 0:00:49]} Nf6 {[%emt 0:01:10]} 5. Nf3 {[%emt 0:00:58]} Nc6 {[%emt 0:00:46]} 6. Be3 {[%emt 0:02:13]} cxd4 {[%emt 0:00:54]} 7. cxd4 {[%emt 0:01:22]} e6 {[%emt 0:02:23]} 8. Be2 {[%emt 0:04:03]} Be7 {[%emt 0:00:59]} 9. O-O {[%emt 0:01:13]} a6 {[%emt 0:01:20]} 10. Nc3 {[%emt 0:02:55]} Qd6 {[%emt 0:01:28]} 11. Rc1 {[%emt 0:04:10]} O-O {[%emt 0:01:26]} 12. Qb3 {[%emt 0:05:21]} Rd8 {[%emt 0:01:48]} 13. Rfd1 {[%emt 0:02:29]} b5 {[%emt 0:04:30]} 14. Qc2 {[%emt 0:07:39]} Bb7 {[%emt 0:02:22]} 15. a3 {[%emt 0:09:44]} Rac8 {[%emt 0:01:42]} 16. b4 {[%emt 0:02:18]} Bf8 {[%emt 0:09:17]} 17. Qb3 {[%emt 0:06:56]} Ne7 {[%emt 0:01:29]} 18. a4 {[%emt 0:12:09]} bxa4 {[%emt 0:03:56]} 19. Nxa4 {[%emt 0:01:31]} Bd5 {[%emt 0:03:17]} 20. Qb2 {[%emt 0:05:51]} Rb8 {[%emt 0:03:36]} 21. Bd2 {[%emt 0:01:58]} Ne4 {[%emt 0:04:56]} 22. Be1 {[%emt 0:00:53]} Nc6 {[%emt 0:02:33]} 23. b5 {[%emt 0:06:43]} axb5 {[%emt 0:01:35]} 24. Bxb5 {[%emt 0:00:58]} Na7 {[%emt 0:01:17]} 25. Nc3 {[%emt 0:07:48]} Nxc3 {[%emt 0:01:05]} 26. Qxc3 {[%emt 0:00:39]} Nxb5 {[%emt 0:00:57]} 27. Qd3 {[%emt 0:01:33]} Na3 {[%emt 0:01:58]} 28. Ba5 {[%emt 0:03:40]} Rb3 {[%emt 0:01:17]} 29. Rc3 {[%emt 0:01:18]} Rxc3 {[%emt 0:03:01]} 30. Qxc3 {[%emt 0:00:13]} Rb8 {[%emt 0:03:39]} 31. Bc7 {[%emt 0:02:02]} Nb5 {[%emt 0:00:11]} 32. Bxd6 {[%emt 0:02:17]} Nxc3 {[%emt 0:00:06]} 33. Bxb8 {[%emt 0:00:36]} Nxd1 {[%emt 0:00:07]} 34. Nd2 {[%emt 0:01:07]} Bb4 {[%emt 0:00:40]} 35. Nf1 {[%emt 0:00:29]} Be1 {[%emt 0:00:25]} 36. Bg3 {[%emt 0:00:25]} Bc3 {[%emt 0:00:12]} 37. Be5 {[%emt 0:00:19]} f6 {[%emt 0:00:07]} 38. Bf4 {[%emt 0:00:27]} Bxd4 {[%emt 0:00:20]} 39. Bg3 {[%emt 0:00:56]} g5 {[%emt 0:01:06]} 40. h4 {[%emt 0:00:17]} g4 {[%emt 0:00:34]} 41. Nh2 {[%emt 0:00:17]} f5 {[%emt 0:00:21]} 42. Kf1 {[%emt 0:00:20]} e5 {[%emt 0:00:17]} 43. f3 {[%emt 0:00:26]} f4 {[%emt 0:00:39]} 44. Be1 {[%emt 0:00:23]} Ne3+ {[%emt 0:00:10]} 45. Ke2 {[%emt 0:00:34]} g3 {[%emt 0:00:08]} 46. Ng4 {[%emt 0:00:31]} Nxg4 {[%emt 0:00:05]} 47. fxg4 {[%emt 0:00:23]} Bxg2 {[%emt 0:00:24]} 48. g5 {[%emt 0:00:40]} Kg7 {[%emt 0:00:12]} 49. h5 {[%emt 0:00:05]} h6 {[%emt 0:00:17]} 50. g6 {[%emt 0:00:26]} e4 {[%emt 0:00:02]} 51. Bd2 {[%emt 0:00:30]} Bf3+ {[%emt 0:00:05]} 52. Kf1 {[%emt 0:00:26]} g2+ {[%emt 0:00:03]} 53. Ke1 {[%emt 0:00:23]} g1=Q# {[%emt 0:04:04]} 0-1

[Event "FRA-ch Youth U14W 2019"]
[Site "Hyeres"]
[Date "2019.04.15"]
[Round "2.1"]
[White "Demais, Eilean"]
[Black "Sumarriva Paulin, Laura"]
[Result "0-1"]
[ECO "C02"]
[WhiteElo "1409"]
[BlackElo "1922"]
[Annotator "NA RC"]
[PlyCount "118"]
[EventDate "2019.04.14"]
[EventType "swiss"]
[EventCountry "FRA"]
[SourceTitle "playchess.com"]
[Source "ChessBase"]
[SourceQuality "1"]
[TimeControl "5400+30"]

{[%evp 8,118,22,32767,-27,32767,32767,32767,32767,32767,-35,-99,-20,-13,-12,-21,-27,-36,-31,-31,-12,-39,-31,-35,-28,-97,-103,-101,-112,-172,-165,-174,-173,-178,-181,-187,-187,-218,-184,32767,32767,32767,-320,32767,32767,-516,32767,32767,-428,-464,32767,-472,32767,-281,-320,-396,32767,-323,32767,32767,32767,32767,32767,-67,32767,32767,32767,0,0,0,32767,32767,32767,32767,32767,0,32767,32767,0,0,32767,32767,0,-38,32767,-71,32767,32767,32767,-59,32767,32767,-50,-21,-40,-1329,-4951,32767,-2374,-1977,-9572,-4618,-29972,-29977,-29972,-29980,-29986,-29987,-29988,-29988,-29989,-29990,-29990]} 1. e4 {[%emt 0:00:00]} e6 {[%emt 0:00:00]} 2. d4 {[%emt 0:00:00]} d5 {[%emt 0:00:00]} 3. e5 {[%emt 0:00:02]} c5 {[%emt 0:00:00]} 4. c3 {[%emt 0:00:14]} Bd7 {[%emt 0:00:32]} 5. Bd3 {[%emt 0:01:15]} Nc6 {[%emt 0:02:08]} 6. Nf3 {[%emt 0:03:33]} cxd4 {[%emt 0:02:38]} 7. cxd4 {[%emt 0:01:35]} Qb6 {[%emt 0:01:05]} 8. Bc2 {[%emt 0:01:46]} Nb4 {[%emt 0:05:42]} 9. Ba4 {[%emt 0:06:26] C02: French: Advance Variation} (9. Nc3 $11 {keeps the balance.}) (9. O-O Nxc2 10. Qxc2 Ne7 11. Nc3 Rc8 12. Qd3 Nc6 13. Rd1 Be7 14. Bg5 h6 15. Bxe7 Nxe7 16. b3 O-O 17. Rac1 Rc7 18. Rc2 {½-½ (43) Bailet,P (2511)-Valuet,B (2277) Cappelle-la-Grande 2018}) 9... Bxa4 {[%emt 0:08:33]} ({Black should try} 9... Qa6 $17 10. Bc2 Rc8) 10. Qxa4+ {[%emt 0:00:19]} Nc6 {[%emt 0:00:22]} 11. a3 $146 {[%emt 0:05:43]} ({Predecessor:} 11. O-O Qb4 12. Qxb4 Bxb4 13. Bd2 Nge7 14. Bxb4 Nxb4 15. Nc3 Nf5 16. Nb5 Kd7 {1-0 (60) Lewis,T (1570)-Langham,R (1787) Sunningdale 2014}) 11... Nge7 {[%emt 0:05:44]} 12. Nc3 {[%emt 0:03:42]} Nf5 {[%emt 0:04:49]} 13. Ne2 {[%emt 0:08:38]} Be7 {[%emt 0:04:59]} 14. Rb1 {[%emt 0:04:39]} O-O {[%emt 0:03:37]} 15. O-O {[%emt 0:01:43]} Rac8 {[%emt 0:09:47]} 16. Bf4 {[%emt 0:04:16] [#]} ({Better is} 16. Kh1 $15) 16... Ncxd4 $1 {[%emt 0:16:30]} 17. Nfxd4 {[%emt 0:14:21]} Rc4 {[%emt 0:01:35]} 18. Qd1 {[%emt 0:02:20]} (18. Qb5 $17 Nxd4 19. Nxd4 Qxb5 20. Nxb5 Rxf4 21. Nxa7) 18... Nxd4 {[%emt 0:00:43]} 19. Nxd4 {[%emt 0:07:08]} Rxd4 {[%emt 0:04:56]} ({Resist} 19... Qxd4 20. Qxd4 Rxd4 21. Be3 $15) 20. Qf3 {[%emt 0:01:53]} Rc4 {[%emt 0:01:55]} 21. Qg3 {[%emt 0:01:41]} Rfc8 {[%emt 0:01:43]} 22. h4 {[%emt 0:02:33]} Qd4 {[%emt 0:06:04]} 23. b3 {[%emt 0:05:30]} Rc3 {[%emt 0:03:42]} 24. Qh2 {[%emt 0:05:32]} Qd3 {[%emt 0:05:23]} 25. g3 {[%emt 0:04:12]} Rxb3 {[%emt 0:01:42]} 26. Rxb3 {[%emt 0:00:48]} Qxb3 {[%emt 0:00:03]} 27. Qh3 {[%emt 0:00:13]} Qf3 {[%emt 0:01:50]} 28. h5 {[%emt 0:00:58]} Rc2 {[%emt 0:01:39]} 29. Be3 {[%emt 0:02:03]} Bc5 {[%emt 0:01:33]} 30. Bxc5 {[%emt 0:00:30]} Rxc5 {[%emt 0:00:05]} 31. h6 {[%emt 0:00:55]} Qf5 {[%emt 0:01:50]} 32. Qh4 {[%emt 0:00:52]} (32. Qxf5 {is the only way for White.} exf5 33. hxg7) 32... g5 {[%emt 0:00:51]} 33. Qa4 {[%emt 0:00:41]} Rc8 {[%emt 0:02:07]} 34. Qd7 {[%emt 0:00:15]} Rf8 {[%emt 0:00:49]} 35. Qxb7 {[%emt 0:00:17]} Qxe5 {[%emt 0:00:22]} 36. Qxa7 {[%emt 0:00:01]} Qf6 {[%emt 0:01:02]} 37. a4 {[%emt 0:01:29]} Qxh6 {[%emt 0:00:14]} 38. Rb1 {[%emt 0:00:34]} Qf6 {[%emt 0:00:27]} 39. a5 {[%emt 0:01:16]} Qd8 {[%emt 0:00:24]} 40. Rb7 {[%emt 0:00:29]} Qa8 {[%emt 0:00:48]} 41. Rxf7 {[%emt 0:00:22]} Qxa7 {[%emt 0:00:19]} 42. Rxa7 {[%emt 0:00:01]} Rb8 {[%emt 0:00:24]} 43. a6 {[%emt 0:00:14]} Rb1+ {[%emt 0:00:20]} 44. Kg2 {[%emt 0:00:01]} Ra1 {[%emt 0:00:18]} 45. Kf3 {[%emt 0:00:25]} h5 {[%emt 0:00:25]} 46. Ra8+ {[%emt 0:00:38]} Kg7 {[%emt 0:00:41]} 47. a7 {[%emt 0:00:30]} Ra3+ {[%emt 0:00:22]} 48. Kg2 {[%emt 0:00:31]} d4 {[%emt 0:00:43]} 49. Re8 {[%emt 0:00:59]} Rxa7 {[%emt 0:00:28]} 50. Rxe6 {[%emt 0:00:01]} Rd7 {[%emt 0:01:51]} 51. Kf3 $2 {[%emt 0:00:13]} (51. Kf1 $15) 51... d3 {[%emt 0:00:21]} 52. Re1 {[%emt 0:00:31]} d2 {[%emt 0:00:14]} 53. Rd1 {[%emt 0:00:01]} Kf6 {[%emt 0:00:57]} 54. Ke2 {[%emt 0:00:01] [#]} h4 $1 {[%emt 0:00:26]} 55. gxh4 {[%emt 0:00:29]} gxh4 {[%emt 0:00:03]} 56. f3 {[%emt 0:01:18]} Kf5 {[%emt 0:00:16]} 57. f4 {[%emt 0:01:29]} h3 {[%emt 0:00:32]} 58. Kf3 {[%emt 0:00:44]} h2 {[%emt 0:00:27]} 59. Ke2 {[%emt 0:04:33]} Rd8 {[%emt 0:00:54]} 0-1

[Event "FRA-ch Youth U14W 2019"]
[Site "Hyeres"]
[Date "2019.04.15"]
[Round "2.2"]
[White "Nguyen, Thao Nhi"]
[Black "Courjal, Juliette"]
[Result "1-0"]
[ECO "C47"]
[WhiteElo "1803"]
[BlackElo "1405"]
[Annotator "NA RC"]
[PlyCount "65"]
[EventDate "2019.04.14"]
[EventType "swiss"]
[EventCountry "FRA"]
[SourceTitle "playchess.com"]
[Source "ChessBase"]
[SourceQuality "1"]
[TimeControl "5400+30"]

1. e4 {[%emt 0:00:00]} e5 {[%emt 0:00:00]} 2. Nf3 {[%emt 0:00:00]} Nc6 {[%emt 0:00:00]} 3. Nc3 {[%emt 0:00:00]} Nf6 {[%emt 0:00:05]} 4. d4 {[%emt 0:00:00]} exd4 {[%emt 0:00:28]} 5. Nxd4 {[%emt 0:00:00]} Bb4 {[%emt 0:00:17]} 6. Nxc6 {[%emt 0:00:16]} bxc6 {[%emt 0:00:49]} 7. Bd3 {[%emt 0:00:10]} O-O {[%emt 0:01:01]} 8. O-O {[%emt 0:00:27]} Re8 {[%emt 0:01:49]} 9. Qf3 {[%emt 0:05:44]} d5 {[%emt 0:05:12]} 10. exd5 {[%emt 0:02:41]} cxd5 {[%emt 0:02:50]} 11. h3 {[%emt 0:01:59]} c6 {[%emt 0:02:29]} 12. Bg5 {[%emt 0:14:42]} h6 {[%emt 0:04:03]} 13. Bh4 {[%emt 0:04:20]} Rb8 {[%emt 0:02:46]} 14. Ne2 {[%emt 0:06:26]} Bd6 {[%emt 0:06:43]} 15. Nd4 {[%emt 0:12:55]} Rb6 {[%emt 0:06:15]} 16. Rae1 {[%emt 0:19:31]} Be5 {[%emt 0:05:27]} 17. Nf5 {[%emt 0:03:19]} Bxf5 {[%emt 0:03:28]} (17... c5 $11 {keeps the balance.}) 18. Qxf5 $16 {[%emt 0:01:12]} Qe7 {[%emt 0:29:01]} 19. Bg3 {[%emt 0:06:49]} c5 {[%emt 0:07:27]} 20. Rxe5 {[%emt 0:02:54]} Qd8 {[%emt 0:01:56]} 21. Rfe1 {[%emt 0:02:21]} g6 {[%emt 0:01:40]} 22. Rxe8+ {[%emt 0:01:50]} Nxe8 {[%emt 0:00:25]} 23. Qf4 {[%emt 0:01:26]} h5 {[%emt 0:03:00]} 24. Qa4 {[%emt 0:01:14]} Re6 {[%emt 0:03:52]} 25. Rxe6 {[%emt 0:00:13]} fxe6 {[%emt 0:00:09]} 26. Bxg6 {[%emt 0:00:06]} Ng7 {[%emt 0:00:27]} 27. Qxa7 {[%emt 0:00:55]} c4 {[%emt 0:01:22]} 28. Qf7+ {[%emt 0:00:20]} Kh8 {[%emt 0:00:11]} 29. Be5 {[%emt 0:00:25]} Qg8 {[%emt 0:00:45]} 30. Qf6 {[%emt 0:00:46]} c3 {[%emt 0:01:11]} 31. Bd3 {[%emt 0:00:30]} Qh7 {[%emt 0:02:46]} 32. Qf8+ {[%emt 0:00:10]} Qg8 {[%emt 0:00:08]} 33. Bxg7# {[%emt 0:00:04]} 1-0